Cogmind - Beta 15 @@@ ROGUE MODE // 2025.08.24 @ 14:30:34 Player: JuustuToug Result: Destroyed by P-80 Master with Gamma Rifle Performance ------------- Evolutions (9) 4500 Regions Visited (27) 5400 Robots Destroyed (142) 710 Value Destroyed (6373) 6373 Prototype IDs (56) 1120 Alien Tech Used (4) 800 Bonus (5093) 5093 TOTAL SCORE: 23996 Bonus ------- High Alert Combat Kills 493 Entered Garrisons 200 Entered DSFs 500 Met Data Miner 300 Acquired ECA 300 Met Zhirov 300 Met Warlord at Base 500 MAIN.C Attacked Warlord 500 Met Warlord at Research 2000 Cogmind --------- Core Integrity 0/1600 Matter 258/300 Energy 98/100 System Corruption 18% Temperature Cool (92) Movement Core (50) Location -1/Access Parts ------- > --- POWER (2) -------- (None) > --- PROPULSION (6) --- (None) > --- UTILITY (15) ----- Enhanced Optical Array > --- WEAPON (2) ------- (None) > --- INVENTORY (5) ---- Quantum Reactor Light Quantum Reactor Improved Terrain Scanner Enhanced Hardcell Cannon Peak State ------------ > --- POWER ------------ Backup Power III Graviton Reactor > --- PROPULSION ------- Field Propulsion Array Impulse Thruster Array Impulse Thruster Array > --- UTILITY ---------- Experimental Power Amplifier Advanced Heat Sink Machine Analyzer Machine Analyzer Enhanced Optical Array Advanced Signal Interpreter Seismic Detector 0b10 Decoder Chip [Looter] Experimental Core Analyzer Advanced Transmission Jammer Advanced Cloaking Device Centrium Light Armor Plating System Shield > --- WEAPON ----------- Sigix Broadsword > --- INVENTORY -------- Light Quantum Reactor Cooled Linear Gravjet Field Propulsion Array Fusion Bomb Launcher [Rating: 164] Favorites ----------- Power Micro Nuclear Core Engine Improved Ion Engine Power Core Micro Nuclear Core Reactor Graviton Reactor Propulsion Improved Cesium-ion Thruster Treads Improved Treads Leg Aluminum Leg Hover Unit Hover Unit Flight Unit Improved Cesium-ion Thruster Utility Small Storage Unit Device Transmission Jammer Storage Small Storage Unit Processor Enhanced Optical Array Hackware Advanced Hacking Suite Protection Improved Propulsion Shielding Weapon Greatsword Energy Gun Field Laser Energy Cannon Particle Cannon Ballistic Gun Assault Rifle Launcher Mini Grenade Launcher Special Weapon RU-N14's Throwing Claymores v3 Impact Weapon Gravity Flail Slashing Weapon Greatsword Piercing Weapon Vortex Lance Build | -11 -10 -10 -9 -8 -8 -8 -7 -7 -7 -7 -6 -6 -6 -5 -5 -5 -5 -4 -4 -4 -4 -4 -3 -3 -2 -2 -1 ------- Run | Yrd Mat Min Mat Mat Gar Mat Fac Low Low Dat Pro Fac DSF Fac Upp Upp War Pro Fac Upp Upp Zhi Pro Res Res Qua Acc Slots Evolved 18 | . . . 2 2 . . 2 . . . . 2 . 2 . . . . 2 . . . . 2 2 . 2 Power 1 | . . . . . . . . . . . . . . . . . . . 1 . . . . . . . . Propulsion 4 | . . . 1 1 . . . . . . . . . . . . . . 1 . . . . . . . 1 Utility 13 | . . . 1 1 . . 2 . . . . 2 . 2 . . . . . . . . . 2 2 . 1 Weapon . | . . . . . . . . . . . . . . . . . . . . . . . . . . . . Parts Attached 206 | 6 3 2 25 7 9 11 12 3 1 . 2 6 . 9 2 3 10 2 4 2 1 6 3 12 28 9 28 Power 24 | 1 . 1 2 1 1 1 1 . . . . 1 . . . . . . 1 . . . 1 1 5 1 6 Engine 8 | 1 . 1 1 1 1 . . . . . . . . . . . . . . . . . 1 . 1 . 1 Core 5 | . . . 1 . . 1 1 . . . . 1 . . . . . . 1 . . . . . . . . Reactor 11 | . . . . . . . . . . . . . . . . . . . . . . . . 1 4 1 5 Propulsion 60 | 2 . . 10 3 3 4 . . 1 . . . . 4 1 . 2 . 1 . . 1 1 7 6 1 13 Treads 1 | . . . 1 . . . . . . . . . . . . . . . . . . . . . . . . Leg 11 | 2 . . 6 2 1 . . . . . . . . . . . . . . . . . . . . . . Wheel . | . . . . . . . . . . . . . . . . . . . . . . . . . . . . Hover 6 | . . . 2 . 1 . . . . . . . . . . . . . . . . 1 . . 1 . 1 Flight 42 | . . . 1 1 1 4 . . 1 . . . . 4 1 . 2 . 1 . . . 1 7 5 1 12 Utility 88 | 1 2 . 4 2 4 4 9 3 . . 1 5 . 5 1 2 3 . 2 2 1 5 1 4 14 7 6 Device 44 | . 1 . 2 1 1 3 5 1 . . . 4 . 3 1 1 1 . 1 . . . . 3 10 3 3 Storage 4 | 1 1 . . . . . . . . . . . . . . . . . . . . 2 . . . . . Processor 20 | . . . . . . . 3 2 . . 1 1 . 2 . 1 1 . . 2 1 . . . 2 2 2 Hackware 7 | . . . . . 1 . 1 . . . . . . . . . 1 . . . . 1 1 . . 1 1 Protection 13 | . . . 2 1 2 1 . . . . . . . . . . . . 1 . . 2 . 1 2 1 . Artifact . | . . . . . . . . . . . . . . . . . . . . . . . . . . . . Weapon 34 | 2 1 1 9 1 1 2 2 . . . 1 . . . . 1 5 2 . . . . . . 3 . 3 Energy Gun 5 | . . . 3 1 1 . . . . . . . . . . . . . . . . . . . . . . Energy Cannon 6 | . . . 5 . . . . . . . . . . . . . . . . . . . . . 1 . . Ballistic Gun 4 | 2 . 1 . . . . . . . . . . . . . . . . . . . . . . . . 1 Ballistic Cannon . | . . . . . . . . . . . . . . . . . . . . . . . . . . . . Launcher 5 | . 1 . 1 . . . . . . . 1 . . . . . 1 . . . . . . . 1 . . Special Weapon 2 | . . . . . . . . . . . . . . . . 1 1 . . . . . . . . . . Impact Weapon 1 | . . . . . . . . . . . . . . . . . . . . . . . . . 1 . . Slashing Weapon 6 | . . . . . . 2 2 . . . . . . . . . 1 . . . . . . . . . 1 Piercing Weapon 5 | . . . . . . . . . . . . . . . . . 2 2 . . . . . . . . 1 Special Melee Weapon . | . . . . . . . . . . . . . . . . . . . . . . . . . . . . Unidentified Prototypes 36 | . . . 3 . . 1 . . . . . 2 . 1 . 1 7 . . . . 5 2 2 7 2 3 Corrupted Parts 1 | . . . . 1 . . . . . . . . . . . . . . . . . . . . . . . System Corruption 2 | . . . . 2 . . . . . . . . . . . . . . . . . . . . . . . Parts Lost 98 | . . 1 4 4 8 . 1 . . . 1 1 1 3 1 2 . 2 3 . 1 . . 11 8 7 39 Power 16 | . . . 2 . 1 . . . . . . 1 . . . . . . . . 1 . . 2 1 1 7 Propulsion 37 | . . . 2 3 3 . . . . . 1 . . 1 1 . . 1 1 . . . . 6 3 1 14 Utility 38 | . . . . 1 2 . . . . . . . 1 2 . 2 . 1 2 . . . . 3 4 5 15 Weapon 7 | . . 1 . . 2 . 1 . . . . . . . . . . . . . . . . . . . 3 Highest Loss Streak 15 | . . 1 2 4 7 . 1 . . . 1 1 1 2 1 2 . 2 2 . 1 . . 6 2 4 15 To Critical Strikes . | . . . . . . . . . . . . . . . . . . . . . . . . . . . . Average Backups 6 | 2 5 8 9 8 4 4 6 8 8 8 7 7 8 6 6 5 5 6 6 6 6 6 6 5 6 6 3 Power . | . 1 1 . . . . . 1 1 1 1 1 1 1 1 1 1 1 1 . . . . . 1 1 1 Propulsion . | . . 1 . . . . . . . . . . . 1 1 1 1 1 . . . . . . . 1 1 Utility 2 | . . 2 3 4 2 2 4 4 4 4 4 3 4 2 2 2 1 . . 2 2 2 2 1 . . . Weapon 2 | 1 2 2 4 2 1 1 1 2 2 2 1 2 2 1 1 . 1 2 3 3 3 2 2 2 2 2 . Tool/Special . | . . . . . . . . . . . . . . . . . . . . . . . . . . . . Unused Backups 45 | . . 1 8 3 2 . 12 2 . . . 1 . 1 . . 3 . 1 . . . 1 2 6 . 2 Power 8 | . . 1 2 . 1 . 1 . . . . 1 . . . . 1 . . . . . . . 1 . . Propulsion 4 | . . . . . . . 1 . . . . . . . . . . . . . . . 1 1 1 . . Utility 15 | . . . . 1 . . 6 2 . . . . . . . . 2 . 1 . . . . . 2 . 1 Weapon 14 | . . . 5 1 1 . 4 . . . . . . 1 . . . . . . . . . . 1 . 1 Tool/Special 4 | . . . 1 1 . . . . . . . . . . . . . . . . . . . 1 1 . . Average Slot Usage (%) 81 | . 86 99 99 58 41 63 91 92 92 92 89 84 84 86 85 87 88 94 91 92 94 87 99 87 83 74 48 Engine 2 | . 14 14 6 5 5 . . . . . . . . . . . . . . . . . 4 2 3 . 1 Core 3 | . . . 4 . . 3 7 7 7 7 7 6 6 5 5 5 5 5 6 10 10 5 5 3 . . . Leg 4 | . 28 28 26 16 . . . . . . . . . . . . . . . . . . . . . . . Flight 15 | . . . . 1 6 27 30 30 30 30 27 20 20 17 17 17 17 17 21 21 21 21 25 21 18 12 10 Device 15 | . 1 14 19 9 5 4 20 13 7 7 7 18 18 27 26 27 19 17 14 4 5 . . 6 15 18 8 Storage 5 | . 14 14 11 6 . . 6 7 7 7 7 6 6 5 5 5 5 5 5 5 5 5 5 4 4 4 . Processor 16 | . . . . . . . 11 23 30 30 30 26 24 22 23 24 29 29 26 30 34 32 26 22 24 21 16 Hackware 2 | . . . . . 5 9 3 . . . . . . . . . 2 5 5 5 1 3 9 9 3 3 3 Protection 2 | . . . 2 6 3 4 2 . . . . . 1 1 . . . . . 5 5 8 10 7 1 5 1 Energy Gun 1 | . . . 1 7 10 . . . . . . . . . . . . . . . . . . . . . . Energy Cannon 1 | . . . 19 4 . . . . . . . . . . . . . . . . . . . . . . . Ballistic Gun 1 | . 27 26 . . . . . . . . . . . . . . . . . . . . . . . . . Slashing Weapon 2 | . . . . . . 13 6 7 7 7 6 6 6 4 5 5 3 . . . . . . . . . 1 Piercing Weapon 1 | . . . . . . . . . . . . . . . . . 1 10 10 10 10 5 10 4 4 3 . Peak Build Rating 164 | 6 7 8 18 19 23 46 53 55 55 55 56 63 63 81 79 88 108 108 119 115 115 112 114 125 138 143 164 Average Rating 66 | 3 6 7 15 12 14 33 50 53 54 54 53 59 61 74 76 79 90 107 110 113 111 101 112 107 123 125 92 On Entrance 62 | . 6 7 8 17 6 3 45 51 55 54 54 51 63 57 73 79 82 108 105 104 115 107 112 112 86 106 96 Naked Turns 18 | . . . . 18 . . . . . . . . . . . . . . . . . . . . . . . Heaviest Build 57 | 14 20 20 28 29 15 23 25 21 17 17 17 19 25 28 26 26 27 27 32 27 27 27 31 32 57 51 43 Greatest Support 48 | 20 20 20 36 36 16 24 24 24 24 24 24 30 30 37 29 29 27 36 34 27 36 27 35 44 46 48 47 Greatest Overweight (x) 5 | . . . 1 1 1 5 1 . . . . . . . 1 1 . . . . . 2 . 4 1 1 2 Average Overweight (x) . | . . . . . . . . . . . . . . . . . . . . . . . . . . . . Largest Inventory Capacity 10 | 8 10 10 10 10 5 5 8 8 8 8 8 8 8 8 8 8 8 8 8 8 8 8 8 8 8 8 8 Average Capacity 7 | 7 9 10 10 8 5 5 7 8 8 8 8 8 8 8 8 8 8 8 8 8 8 8 8 8 8 8 5 Most Carried 10 | 5 8 10 10 10 5 5 8 8 8 8 8 8 8 8 8 7 8 8 8 8 8 8 8 8 8 8 6 Average Carried 6 | 2 5 9 9 7 4 4 7 7 8 8 7 7 8 6 7 6 7 7 7 7 7 7 7 6 7 6 3 Final Capacity 10 | 8 10 10 10 5 5 5 8 8 8 8 8 8 8 8 8 8 8 8 8 8 8 8 8 8 8 8 5 Final Carried 10 | 2 8 9 10 4 3 4 8 8 8 8 8 8 8 7 7 6 8 5 8 7 7 8 7 7 8 8 4 Class Distribution -------------------- 18% | Mutant 17% | Infiltrator-Ninja 15% | Infiltrator-Sprinter 11% | Sprinter 11% | Scavenger-Mutant 4% | Hacker-Sprinter 4% | Infiltrator-Mutant 4% | Ninja 3% | Hacker-Scout 3% | Hacker-Ninja Dominant Class ---------------- Mutant | -10/Materials Mutant | -10/Mines Scavenger-Mutant | -9/Materials Scavenger-Mutant | -8/Materials Mutant | -8/Garrison Sprinter | -8/Materials Infiltrator-Sprinter | -7/Factory Sprinter | -7/Lower Caves Sprinter | -7/Lower Caves Sprinter | -7/Data Miner Sprinter | -6/Proximity Caves Infiltrator-Sprinter | -6/Factory Infiltrator-Sprinter | -6/DSF Infiltrator-Ninja | -5/Factory Infiltrator-Ninja | -5/Upper Caves Infiltrator-Ninja | -5/Upper Caves Hacker-Scout | -5/Warlord Hacker-Scout | -4/Proximity Caves Hacker-Ninja | -4/Factory Hacker-Sprinter | -4/Upper Caves Sprinter | -4/Upper Caves Mutant | -4/Zhirov Derelict-Sprinter | -3/Proximity Caves Hacker-Sprinter | -3/Research Infiltrator-Sprinter | -2/Research Infiltrator-Mutant | -2/Quarantine Infiltrator-Mutant | -1/Access Resources | -11 -10 -10 -9 -8 -8 -8 -7 -7 -7 -7 -6 -6 -6 -5 -5 -5 -5 -4 -4 -4 -4 -4 -3 -3 -2 -2 -1 ----------- Run | Yrd Mat Min Mat Mat Gar Mat Fac Low Low Dat Pro Fac DSF Fac Upp Upp War Pro Fac Upp Upp Zhi Pro Res Res Qua Acc Matter Collected 3507 | 179 6 183 365 40 198 138 166 60 30 . 50 182 5 56 139 50 120 20 40 45 . 115 40 137 681 . 462 Remotely . | . . . . . . . . . . . . . . . . . . . . . . . . . . . . Salvage Created 5988 | . 36 161 706 270 638 40 468 219 130 . 63 . . 56 438 211 . 20 106 50 6 300 . 227 1070 128 645 Parts 236 | . 9 11 47 11 13 1 20 2 12 . 6 . . 1 3 15 . . 2 2 . . . 17 24 4 36 Haulers Intercepted 4 | . . . 1 . . . 1 . . . . . . . . . . . . . . . . . . 1 1 Recyclers Shooed 2 | . . . . 1 . . . . . . . . . . . . . . . . . . . . . . 1 Parts Field Recycled . | . . . . . . . . . . . . . . . . . . . . . . . . . . . . Retrieved Matter . | . . . . . . . . . . . . . . . . . . . . . . . . . . . . Parts Self-Destructed 18 | . . . . . . . . . . . 4 . . . 2 12 . . . . . . . . . . . Prevented 1 | . . . . . . . . 1 . . . . . . . . . . . . . . . . . . . Kills | -11 -10 -10 -9 -8 -8 -8 -7 -7 -7 -7 -6 -6 -6 -5 -5 -5 -5 -4 -4 -4 -4 -4 -3 -3 -2 -2 -1 ------- Run | Yrd Mat Min Mat Mat Gar Mat Fac Low Low Dat Pro Fac DSF Fac Upp Upp War Pro Fac Upp Upp Zhi Pro Res Res Qua Acc Combat Hostiles Destroyed 103 | . 3 10 11 2 6 1 6 . . . 4 . . . . 3 . 4 . . . . . 10 19 1 23 Melee 16 | . . . . . . 1 6 . . . 1 . . . . 3 . 1 . . . . . 1 1 . 2 Guns 7 | . . 3 1 1 2 . . . . . . . . . . . . . . . . . . . . . . Cannons 8 | . . . 7 1 . . . . . . . . . . . . . . . . . . . . . . . AOE 71 | . 3 7 2 . 4 . . . . . 3 . . . . . . 3 . . . . . 9 18 1 21 Classes Destroyed 17 | . 2 2 5 1 . . 2 . . . . . . . . 1 . . . . . . . . 4 . . Worker 4 | . . . 2 . . . . . . . . . . . . . . . . . . . . . . . 2 Builder 2 | . . . 2 . . . . . . . . . . . . . . . . . . . . . . . . Tunneler 3 | . . 1 1 . . . . . . . . . . . . . . . . . . . . . . . 1 Hauler 4 | . . . 1 . . . 1 . . . . . . . . . . . . . . . . . . 1 1 Recycler 3 | . . . . 2 . . . . . . . . . . . . . . . . . . . . . . 1 Mechanic 1 | . . . . . . . . . . . . . . . . . . . . . . . . . 1 . . Operator 3 | . . . 1 . . . 1 . . . . . . . . . . . 1 . . . . . . . . Watcher 19 | . 1 . 1 1 1 . 2 . . . . . . 2 . . . . 2 . . . . 3 5 . 1 Swarmer 52 | . 3 6 . . 4 . . . . . 3 . . . . . . 4 . . . . . 9 . 1 22 Grunt 24 | . . 4 6 2 2 1 . . . . . . . . . . . . . . . . . . 8 . 1 Sentry 7 | . . . 5 . . . 2 . . . . . . . . . . . . . . . . . . . . Demolisher 1 | . . . . . . . . . . . . . . . . . . . . . . . . . 1 . . Specialist 1 | . . . . . . . . . . . . . . . . 1 . . . . . . . . . . . Hunter 6 | . . . . . . . 1 . . . . . . . . 2 . . . . . . . . 3 . . Programmer 7 | . . . . . . . 3 . . . 1 . . . . . . . . . . . . 1 2 . . Striker 2 | . . . . . . . . . . . . . . . . . . . . . . . . . 2 . . Executioner 3 | . . . . . . . . . . . . . . . . . . . . . . . . . 3 . . Decomposer 16 | . . . . . . . . 3 8 . . . . . . 1 . 1 . 2 1 . . . . . . Packrat 3 | . . . . . . . . 1 . . . . . . 2 . . . . . . . . . . . . Best Kill Streak 16 | . 4 7 5 4 4 1 3 . . . 3 . . 2 . 1 . 4 1 . . . . 9 9 1 16 Combat Bots Only 13 | . 3 6 3 2 4 1 2 . . . 3 . . . . 1 . 4 . . . . . 9 7 1 13 Max Kills in Single Turn 10 | . 3 3 4 1 3 1 1 1 1 . 2 . . 1 1 1 . 3 1 1 1 . . 5 4 1 10 Gunslinging . | . . . . . . . . . . . . . . . . . . . . . . . . . . . . Exploded 8 | . 2 2 2 . 3 . . . . . 2 . . . . . . 3 . . . . . 5 4 1 8 Melee 1 | . . . . . . 1 1 . . . 1 . . . . 1 . 1 . . . . . 1 1 . 1 Uniques/NPCs Destroyed . | . . . . . . . . . . . . . . . . . . . . . . . . . . . . Combat | -11 -10 -10 -9 -8 -8 -8 -7 -7 -7 -7 -6 -6 -6 -5 -5 -5 -5 -4 -4 -4 -4 -4 -3 -3 -2 -2 -1 -------- Run | Yrd Mat Min Mat Mat Gar Mat Fac Low Low Dat Pro Fac DSF Fac Upp Upp War Pro Fac Upp Upp Zhi Pro Res Res Qua Acc Hostile Shots Fired 1443 | . 6 46 51 28 176 7 92 . 3 . 12 . 12 32 2 15 1 68 47 20 18 . . 137 75 160 435 Missed 718 | . 4 9 9 10 75 2 46 . 3 . 5 . 6 18 . 5 . 43 26 12 10 . . 73 41 101 220 Hits 725 | . 2 37 42 18 101 5 46 . . . 7 . 6 14 2 10 1 25 21 8 8 . . 64 34 59 215 Melee 3 | . . . . . . . . . . . . . 2 . . . . . . . . . . . . . 1 Projectile 722 | . 2 37 42 18 101 5 46 . . . 7 . 4 14 2 10 1 25 21 8 8 . . 64 34 59 214 AOE 4 | . . . . . . . . . . . . . 2 . . . . . . . . . . . 2 . . Critical Strikes 20 | . . . 1 3 2 . . . . . . . . . . . 1 . . . . . . 4 2 . 7 Part Disruptions 4 | . . . . . . . . . . . . . . . . 1 . . . . . . . . . . 3 Damage Taken 13631 | . 16 435 694 345 1254 87 499 . . . 113 . 229 256 34 150 20 339 344 155 162 . . 1461 972 1254 4812 Core 3686 | . 16 73 48 48 456 35 142 . . . 21 . . 34 . 12 . 127 133 60 23 . . 507 195 138 1618 Absorbed by Shields 42 | . . . . . 42 . . . . . . . . . . . . . . . . . . . . . . Redirected to Shielding 197 | . . . . . . . . . . . . . . . . . . . 15 25 24 . . 29 . 104 . Regen/Repaired (Parts) 458 | . . . . . . . . . . . . . . 94 . . 16 . . . . . . . 73 . 275 Core Remaining (%) 72 | 100 . 64 88 . . 2 . . . . 76 . 100 . . . . 82 . . . . 74 61 . 77 . Volleys Fired 206 | . 2 13 34 11 112 . . . . . 3 . . . . . . 1 . . . . . 2 15 5 8 Largest 2 | . 1 2 2 2 2 . . . . . 1 . . . . . . 1 . . . . . 1 1 1 1 Hottest 143 | . 30 40 136 113 143 . . . . . 39 . . . . . . 20 . . . . . 20 52 52 52 Shots Fired 258 | . 2 20 65 17 120 . . . . . 3 . . . . . . 1 . . . . . 2 15 5 8 Gun 149 | . . 14 6 11 115 . . . . . . . . . . . . . . . . . . . . . 3 Cannon 63 | . . . 57 6 . . . . . . . . . . . . . . . . . . . . . . . Launcher 46 | . 2 6 2 . 5 . . . . . 3 . . . . . . 1 . . . . . 2 15 5 5 Special . | . . . . . . . . . . . . . . . . . . . . . . . . . . . . Kinetic 17 | . . 14 . . . . . . . . . . . . . . . . . . . . . . . . 3 Thermal 185 | . . . 63 7 115 . . . . . . . . . . . . . . . . . . . . . . Explosive 40 | . 2 6 2 . 5 . . . . . 3 . . . . . . . . . . . . . 12 5 5 Electromagnetic 10 | . . . . 10 . . . . . . . . . . . . . . . . . . . . . . . Entropic 6 | . . . . . . . . . . . . . . . . . . 1 . . . . . 2 3 . . Robot Hit Streak 50 | . 1 7 8 8 50 . . . . . 4 . . . . . . . . . . . . 5 10 12 3 Robot Miss Streak 5 | . 1 2 5 1 1 . . . . . . . . . . . . . . . . . . 1 . . 1 Penetration Max . | . . . . . . . . . . . . . . . . . . . . . . . . . . . . Secondary Targets 1 | . . 1 . . . . . . . . . . . . . . . . . . . . . . . . . Max Gunslinging Chain 1 | . . 1 . . . . . . . . . . . . . . . . . . . . . . . . . Shots Hit Robots 302 | . 1 14 43 14 85 2 24 6 8 . 4 . . 7 10 8 . 6 4 2 1 8 . 12 20 5 18 Core Hits 216 | . 3 17 22 8 34 1 7 1 4 . 4 . . 2 2 4 . 5 2 1 1 3 . 10 42 10 33 Critical Kills . | . . . . . . . . . . . . . . . . . . . . . . . . . . . . Critical Parts Destroyed . | . . . . . . . . . . . . . . . . . . . . . . . . . . . . Critical Strikes 21 | . . . . . 2 . 6 . . . . . . . . 1 . 2 . . . 1 . 1 2 1 5 Burn 2 | . . . . . 2 . . . . . . . . . . . . . . . . . . . . . . Sever 8 | . . . . . . . 6 . . . . . . . . 1 . . . . . . . . . . 1 Impale 4 | . . . . . . . . . . . . . . . . . . . . . . . . . . . 4 Sunder 7 | . . . . . . . . . . . . . . . . . . 2 . . . 1 . 1 2 1 . Melee Attacks 196 | . . . . . . 4 44 6 8 . 1 . . 9 10 9 . 7 10 2 1 10 1 20 18 6 30 Impact 3 | . . . . . . . . . . . . . . . . . . . . . . . . . 3 . . Slashing 110 | . . . . . . 4 44 6 8 . 1 . . 9 10 9 . . . . . . . . . . 19 Piercing 11 | . . . . . . . . . . . . . . . . . . . . . . . . . . . 11 Entropic 72 | . . . . . . . . . . . . . . . . . . 7 10 2 1 10 1 20 15 6 . Sneak Attacks 30 | . . . . . . . 2 4 8 . . . . 2 2 3 . 2 . 2 1 . . 2 . 1 1 Combat Hostiles 3 | . . . . . . . 1 . . . . . . . . 2 . . . . . . . . . . . Follow-up Attacks 4 | . . . . . . . . . . . . . . . . . . . 1 . . 1 . 1 1 . . Damage Inflicted 26497 | . 219 687 1111 369 1870 63 1530 693 996 . 409 . . 551 1066 617 . 1354 320 335 154 1338 . 2649 5283 1121 3762 Guns 1908 | . . 143 60 217 1468 . . . . . . . . . . . . . . . . . . . . . 20 Cannons 925 | . . . 843 82 . . . . . . . . . . . . . . . . . . . . . . . Explosions 11736 | . 219 544 208 70 393 . . . . . 357 . . . . . . 606 . . . . . 1465 4348 740 2786 Melee 11899 | . . . . . . 63 1530 693 996 . 52 . . 551 1066 617 . 748 320 335 154 1338 . 1165 935 381 955 Ramming 29 | . . . . . 9 . . . . . . . . . . . . . . . . . . 19 . . 1 Kinetic 163 | . . 143 . . . . . . . . . . . . . . . . . . . . . . . . 20 Thermal 2523 | . . . 903 152 1468 . . . . . . . . . . . . . . . . . . . . . . Explosive 7787 | . 219 544 208 . 393 . . . . . 357 . . . . . . . . . . . . . 2540 740 2786 Electromagnetic 217 | . . . . 217 . . . . . . . . . . . . . . . . . . . . . . . Impact 189 | . . . . . . . . . . . . . . . . . . . . . . . . . 189 . . Slashing 6045 | . . . . . . 63 1530 693 996 . 52 . . 551 1066 617 . . . . . . . . . . 477 Piercing 478 | . . . . . . . . . . . . . . . . . . . . . . . . . . . 478 Entropic 9066 | . . . . . . . . . . . . . . . . . . 1354 320 335 154 1338 . 2630 2554 381 . Highest Corruption 18 | . . . . 2 2 2 3 . . . . . . . . 1 1 . 1 1 1 1 1 2 . 3 18 Average Corruption 2 | . . . . 2 2 1 2 . . . . . . . . 1 1 . 1 1 1 1 1 1 . 2 6 Corruption Purged 7 | . . . . . . 2 3 . . . . . . . . . . . . . . . . 2 . . . Corruption Blocked . | . . . . . . . . . . . . . . . . . . . . . . . . . . . . Effects 40 | . . . . 1 15 2 4 . . . . . . . . 1 1 . . 1 . . 1 . . 2 12 Message Errors 10 | . . . . 1 6 . . . . . . . . . . . . . . . . . 1 . . 2 . Matter Fused 8 | . . . . . 3 . 2 . . . . . . . . . . . . . . . . . . . 3 Heat Flow Errors 4 | . . . . . 1 . . . . . . . . . . . 1 . . . . . . . . . 2 Energy Discharges 5 | . . . . . 2 . 2 . . . . . . . . . . . . . . . . . . . 1 Parts Rejected 1 | . . . . . . 1 . . . . . . . . . . . . . . . . . . . . . Data Loss (minor) 5 | . . . . . 2 1 . . . . . . . . . 1 . . . 1 . . . . . . . Data Loss (major) 1 | . . . . . 1 . . . . . . . . . . . . . . . . . . . . . . Misdirections 6 | . . . . . . . . . . . . . . . . . . . . . . . . . . . 6 Overload Shots . | . . . . . . . . . . . . . . . . . . . . . . . . . . . . Overflow Damage 4036 | . 32 28 5 6 28 . 293 511 444 . 38 . . 147 503 70 . 322 82 151 . 282 . 501 192 92 309 Projectiles 11 | . . . 5 6 . . . . . . . . . . . . . . . . . . . . . . . Explosions 507 | . 32 28 . . 28 . . . . . 38 . . . . . . 55 . . . . . 88 105 28 105 Melee 3518 | . . . . . . . 293 511 444 . . . . 147 503 70 . 267 82 151 . 282 . 413 87 64 204 Knockbacks 2 | . . . . . . . . . . . . . . . . . . . . . . . . 1 . . 1 Impact 2 | . . . . . . . . . . . . . . . . . . . . . . . . 1 . . 1 Kinetic . | . . . . . . . . . . . . . . . . . . . . . . . . . . . . Secondary . | . . . . . . . . . . . . . . . . . . . . . . . . . . . . Self-Inflicted Damage 344 | . . 31 69 74 4 . . . . . . . . . . . . . . . . . . 9 . 132 25 Shots 9 | . . 1 2 2 . . . . . . . . . . . . . . . . . . . . . 3 1 Rammed 3 | . . . . . 1 . . . . . . . . . . . . . . . . . . 1 . . 1 Targets Rammed 3 | . . . . . 1 . . . . . . . . . . . . . . . . . . 1 . . 1 Kicked . | . . . . . . . . . . . . . . . . . . . . . . . . . . . . Crushed . | . . . . . . . . . . . . . . . . . . . . . . . . . . . . Highest Temperature 321 | . . 8 321 36 231 120 36 . . . . . . . . . 125 67 264 3 107 . . 84 1 . 164 Average Temperature 51 | . . 3 108 11 30 57 9 . . . . . . . . . 65 28 104 2 57 . . 27 1 . 108 Received Heat Transfer 2000 | . . 141 285 153 519 45 84 . . . 12 . . 81 . . 27 90 36 30 51 . . 176 117 . 153 Effects 5 | . . . 5 . . . . . . . . . . . . . . . . . . . . . . . . Energy Bleed 2 | . . . 2 . . . . . . . . . . . . . . . . . . . . . . . . Interference 3 | . . . 3 . . . . . . . . . . . . . . . . . . . . . . . . Siege Activations . | . . . . . . . . . . . . . . . . . . . . . . . . . . . . Martial Activations . | . . . . . . . . . . . . . . . . . . . . . . . . . . . . Shielding Activations . | . . . . . . . . . . . . . . . . . . . . . . . . . . . . Robots Disrupted . | . . . . . . . . . . . . . . . . . . . . . . . . . . . . Combat Hostiles . | . . . . . . . . . . . . . . . . . . . . . . . . . . . . Robots Corrupted 2 | . . . . 1 . . . . . . . . . . . . . . . . . . . . 1 . . Combat Hostiles . | . . . . . . . . . . . . . . . . . . . . . . . . . . . . Parts Fried 1 | . . . . 1 . . . . . . . . . . . . . . . . . . . . . . . Impact Corruptions 1 | . . . . . . . . . . . . . . . . . . . . . . . . . 1 . . Robots Melted 2 | . . . 1 . 1 . . . . . . . . . . . . . . . . . . . . . . Combat Hostiles 1 | . . . 1 . . . . . . . . . . . . . . . . . . . . . . . . Parts Melted 4 | . . . 3 . 1 . . . . . . . . . . . . . . . . . . . . . . Heat Transferred 5169 | . . . 1665 198 3306 . . . . . . . . . . . . . . . . . . . . . . Parts Sabotaged . | . . . . . . . . . . . . . . . . . . . . . . . . . . . . Parts Stolen . | . . . . . . . . . . . . . . . . . . . . . . . . . . . . Parts Stripped . | . . . . . . . . . . . . . . . . . . . . . . . . . . . . Power Chain Reactions 2 | . . . . 2 . . . . . . . . . . . . . . . . . . . . . . . Alert | -11 -10 -10 -9 -8 -8 -8 -7 -7 -7 -7 -6 -6 -6 -5 -5 -5 -5 -4 -4 -4 -4 -4 -3 -3 -2 -2 -1 ------- Run | Yrd Mat Min Mat Mat Gar Mat Fac Low Low Dat Pro Fac DSF Fac Upp Upp War Pro Fac Upp Upp Zhi Pro Res Res Qua Acc Maximum Alert Level 3 | . . . . . 2 1 . . . . . . . . . . . . . . . . . 2 3 2 3 Low Security (%) 68 | 100 100 100 100 100 65 . 100 . . . . 100 100 100 . . . . 100 . . . . 26 25 . . Level 1 16 | . . . . . 25 100 . . . . . . . . . . . . . . . . . 47 54 6 17 Level 2 8 | . . . . . 8 . . . . . . . . . . . . . . . . . . 25 6 93 32 Level 3 6 | . . . . . . . . . . . . . . . . . . . . . . . . . 12 . 49 Level 4 . | . . . . . . . . . . . . . . . . . . . . . . . . . . . . Level 5 . | . . . . . . . . . . . . . . . . . . . . . . . . . . . . High Security . | . . . . . . . . . . . . . . . . . . . . . . . . . . . . Max Security . | . . . . . . . . . . . . . . . . . . . . . . . . . . . . Peak Influence 942 | . 92 170 169 79 566 314 161 . . . . 18 3 45 . . . . 68 . . . . 524 739 640 942 Initial 408 | . . 2 61 46 44 275 137 . . . . 18 3 . . . . . 53 . . . . . 263 408 365 Average 188 | . 29 102 61 41 191 279 90 . . . . 2 2 14 . . . . 26 . . . . 281 317 490 632 Influence Increases 6257 | . 148 278 391 146 602 79 345 10 15 . 130 5 . 260 25 60 . 165 131 135 15 15 . 734 954 342 1272 Destroy 0b10 Robot/C 2060 | . 60 200 220 40 120 20 120 . . . 80 . . . . 60 . 80 . . . . . 200 380 20 460 Destroy 0b10 Robot/NC 255 | . 5 5 40 15 30 . 20 10 . . . . . 10 10 . . . 15 . . 15 . 15 30 5 30 Destroy Leader 412 | . 12 40 84 12 . . 66 . . . 20 . . 4 . . . 10 4 . . . . 26 100 2 32 Trap Triggered on 0b10 30 | . . . . . 30 . . . . . . . . . . . . . . . . . . . . . . Successful Hack 247 | . 26 . . 4 . 14 8 . . . . 5 . 36 . . . . 16 . . . . 21 15 39 63 Select Force Hacks 90 | . . . . . . . 90 . . . . . . . . . . . . . . . . . . . . Disable Machine 195 | . . . 15 30 75 . . . . . . . . . . . . . . . . . . 15 15 30 15 Anti-Garrison Action 100 | . . . . . 100 . . . . . . . . . . . . . . . . . . . . . . Destroy Structure 813 | . 15 33 17 . 22 . 11 . . . . . . . . . . . 6 . . . . 82 279 201 147 Partial Spotted 435 | . . . 15 . . 30 30 . . . . . . 165 . . . . 45 . . . . 90 45 . 15 Lose Combat Pursuer 1620 | . 30 . . 45 225 15 . . 15 . 30 . . 45 15 . . 75 45 135 15 . . 285 90 45 510 Influence Decreases 5360 | . 141 127 437 189 105 341 601 58 15 . 100 30 5 243 27 75 . 80 201 75 75 25 5 265 696 459 985 Entered New Map 1539 | . . 5 97 66 25 291 167 19 . . . 12 2 . 8 4 . . 32 6 15 15 5 . 206 319 245 Time Decay 2913 | . 141 112 310 90 . 50 404 39 15 . 100 18 . 213 19 71 . 60 149 69 50 10 . 163 410 70 350 Lost Part 888 | . . 10 30 33 80 . 10 . . . . . 3 30 . . . 20 20 . 10 . . 102 80 70 390 Lost Ally 20 | . . . . . . . 20 . . . . . . . . . . . . . . . . . . . . Squads Dispatched 43 | . 1 . 1 2 . . 6 . . . . . 1 6 . . . . 3 . . . . 6 1 4 12 Investigation 21 | . 1 . 1 . . . 3 . . . . . . 4 . . . . 1 . . . . 3 1 . 7 Extermination 13 | . . . . . . . 3 . . . . . . 2 . . . . 1 . . . . 2 . 1 4 Reinforcement 8 | . . . . 2 . . . . . . . . 1 . . . . . 1 . . . . 1 . 3 . Assault 1 | . . . . . . . . . . . . . . . . . . . . . . . . . . . 1 Garrison . | . . . . . . . . . . . . . . . . . . . . . . . . . . . . Intercept . | . . . . . . . . . . . . . . . . . . . . . . . . . . . . Searches Triggered . | . . . . . . . . . . . . . . . . . . . . . . . . . . . . Data Miner Redirects 4 | . . . . . . . . . . . . . . 1 . . . . . . . . . . . . 3 Construction Impeded . | . . . . . . . . . . . . . . . . . . . . . . . . . . . . Haulers Reinforced . | . . . . . . . . . . . . . . . . . . . . . . . . . . . . Active Scanning Responses . | . . . . . . . . . . . . . . . . . . . . . . . . . . . . Cargo Convoy Interrupts . | . . . . . . . . . . . . . . . . . . . . . . . . . . . . Stealth | -11 -10 -10 -9 -8 -8 -8 -7 -7 -7 -7 -6 -6 -6 -5 -5 -5 -5 -4 -4 -4 -4 -4 -3 -3 -2 -2 -1 --------- Run | Yrd Mat Min Mat Mat Gar Mat Fac Low Low Dat Pro Fac DSF Fac Upp Upp War Pro Fac Upp Upp Zhi Pro Res Res Qua Acc Distress Signals 21 | . . . . 2 . 1 . . . . . . . 2 . . . 1 . . . . . 1 8 1 5 Communications Jammed 130 | . . . . . . . 14 . . . . . . . . . . . . . . . . . 94 18 4 Distress Signals 130 | . . . . . . . 14 . . . . . . . . . . . . . . . . . 94 18 4 Times Spotted 468 | . 7 13 14 9 25 8 14 . 1 . 10 . 5 28 5 10 4 19 22 12 9 . . 46 72 20 115 Peak Tracking Total 21 | . 4 6 3 6 13 7 2 . 1 . 4 . 5 11 4 5 3 11 8 3 9 . . 16 14 12 21 Tactical Retreats 65 | . 1 . . 2 6 1 3 . 1 . 2 . . 4 1 3 . 3 5 3 1 . . 7 5 2 15 Traps | -11 -10 -10 -9 -8 -8 -8 -7 -7 -7 -7 -6 -6 -6 -5 -5 -5 -5 -4 -4 -4 -4 -4 -3 -3 -2 -2 -1 ------- Run | Yrd Mat Min Mat Mat Gar Mat Fac Low Low Dat Pro Fac DSF Fac Upp Upp War Pro Fac Upp Upp Zhi Pro Res Res Qua Acc Traps Triggered 8 | . . . . . 3 . 3 . . . . . . . . . . . . . . . . 1 . . 1 Indirectly . | . . . . . . . . . . . . . . . . . . . . . . . . . . . . Trap Hack Attempts . | . . . . . . . . . . . . . . . . . . . . . . . . . . . . Triggered . | . . . . . . . . . . . . . . . . . . . . . . . . . . . . Disarmed . | . . . . . . . . . . . . . . . . . . . . . . . . . . . . Reprogrammed . | . . . . . . . . . . . . . . . . . . . . . . . . . . . . Reused 3 | . . . . . 3 . . . . . . . . . . . . . . . . . . . . . . Traps Extracted . | . . . . . . . . . . . . . . . . . . . . . . . . . . . . Installed 8 | . . . . . 8 . . . . . . . . . . . . . . . . . . . . . . Triggered 3 | . . . . . 3 . . . . . . . . . . . . . . . . . . . . . . Most Traps Carried 1 | . . . . . 1 . . . . . . . . . . . . . . . . . . . . . . Machines | -11 -10 -10 -9 -8 -8 -8 -7 -7 -7 -7 -6 -6 -6 -5 -5 -5 -5 -4 -4 -4 -4 -4 -3 -3 -2 -2 -1 ---------- Run | Yrd Mat Min Mat Mat Gar Mat Fac Low Low Dat Pro Fac DSF Fac Upp Upp War Pro Fac Upp Upp Zhi Pro Res Res Qua Acc Machines Disabled 17 | . . . 1 2 7 . . . . . . . . . . 1 . . . . . . 1 1 1 2 1 Max in Single Turn 3 | . . . 1 2 3 . . . . . . . . . . 1 . . . . . . 1 1 1 1 1 Garrison Access 3 | . . . . . . . 1 . . . . . . . . . . . . . . . . . 2 . . Garrison Relay 2 | . . . . . 2 . . . . . . . . . . . . . . . . . . . . . . Machines Repaired . | . . . . . . . . . . . . . . . . . . . . . . . . . . . . Machines Dismantled . | . . . . . . . . . . . . . . . . . . . . . . . . . . . . Machines Sabotaged . | . . . . . . . . . . . . . . . . . . . . . . . . . . . . Overloaded Fab Kills . | . . . . . . . . . . . . . . . . . . . . . . . . . . . . Hacking | -11 -10 -10 -9 -8 -8 -8 -7 -7 -7 -7 -6 -6 -6 -5 -5 -5 -5 -4 -4 -4 -4 -4 -3 -3 -2 -2 -1 --------- Run | Yrd Mat Min Mat Mat Gar Mat Fac Low Low Dat Pro Fac DSF Fac Upp Upp War Pro Fac Upp Upp Zhi Pro Res Res Qua Acc Machines Accessed 102 | . 8 . 5 2 1 2 14 2 . 4 . 3 . 10 1 . 12 . 7 . . 5 1 5 4 4 12 Terminals 53 | . 6 . 5 1 1 2 8 1 . . . 3 . 6 . . . . 3 . . . . 3 4 3 7 Fabricators 3 | . . . . . . . 1 . . . . . . . . . . . 1 . . . . 1 . . . Repair Stations 4 | . . . . . . . . . . . . . . 1 . . . . 1 . . . . . . 1 1 Recycling Units 9 | . 2 . . . . . 3 . . . . . . . . . . . 1 . . . . 1 . . 2 Scanalyzers 4 | . . . . . . . 1 . . . . . . 2 . . . . 1 . . . . . . . . Garrison Access 5 | . . . . 1 . . 1 . . . . . . 1 . . . . . . . . . . . . 2 Total Hacks 248 | . 22 . 13 3 2 4 30 2 . 30 . 3 . 28 1 . 22 . 15 . . 18 1 12 8 7 27 Successful 122 | . 9 . 4 1 . 3 10 2 . 30 . 1 . 6 1 . 22 . 3 . . 18 1 5 1 2 3 Failed 126 | . 13 . 9 2 2 1 20 . . . . 2 . 22 . . . . 12 . . . . 7 7 5 24 Catastrophic 39 | . 4 . 3 . . . 3 . . . . 2 . 7 . . . . 5 . . . . 2 3 3 7 Database Lockouts . | . . . . . . . . . . . . . . . . . . . . . . . . . . . . Manual 44 | . 5 . 1 . . . 15 . . . . . . 6 . 1 1 . 2 . . . . 5 3 3 2 Terminals 115 | . 17 . 13 2 2 4 17 1 . . . 3 . 16 . . . . 5 . . . . 6 8 5 16 Fabricators 11 | . . . . . . . 2 . . . . . . . . . . . 6 . . . . 3 . . . Repair Stations 7 | . . . . . . . . . . . . . . 2 . . . . 1 . . . . . . 2 2 Recycling Units 21 | . 5 . . . . . 7 . . . . . . . . . . . 1 . . . . 3 . . 5 Scanalyzers 11 | . . . . . . . 2 . . . . . . 7 . . . . 2 . . . . . . . . Garrison Access 10 | . . . . 1 . . 2 . . . . . . 3 . . . . . . . . . . . . 4 Terminal Hacks 96 | . 5 . 4 . . 3 . 2 . 30 . 1 . 1 1 . 22 . 1 . . 18 1 2 1 1 3 Record 41 | . . . . . . . . 1 . 11 . . . . . . 20 . . . . 6 1 . 1 . 1 Part Schematic 15 | . 1 . . . . . . . . 10 . . . . . . . . . . . 4 . . . . . Robot Schematic 6 | . . . . . . . . . . 6 . . . . . . . . . . . . . . . . . Robot Analysis 4 | . . . . . . . . . . . . . . . . . . . . . . 4 . . . . . Prototype ID Bank 9 | . . . 2 . . . . . . 3 . . . . . . . . . . . 4 . . . . . Open Door 4 | . . . . . . . . 1 . . . . . . 1 . 2 . . . . . . . . . . Open DSF 1 | . . . . . . . . . . . . 1 . . . . . . . . . . . . . . . Level Access Points 1 | . . . . . . . . . . . . . . . . . . . . . . . . . . . 1 Branch Access Points 3 | . . . . . . 1 . . . . . . . . . . . . 1 . . . . . . 1 . Emergency Access Points 1 | . . . . . . . . . . . . . . . . . . . . . . . . . . . 1 Machine Index 1 | . . . . . . . . . . . . . . . . . . . . . . . . 1 . . . Alert Level 3 | . . . 1 . . 1 . . . . . . . . . . . . . . . . . 1 . . . Locate Traps 4 | . 3 . 1 . . . . . . . . . . . . . . . . . . . . . . . . Recall Extermination 1 | . . . . . . . . . . . . . . 1 . . . . . . . . . . . . . Zone Layout 2 | . 1 . . . . 1 . . . . . . . . . . . . . . . . . . . . . Fabricator Hacks 4 | . . . . . . . 1 . . . . . . . . . . . 1 . . . . 2 . . . Network Status 1 | . . . . . . . 1 . . . . . . . . . . . . . . . . . . . . Load Schematic 2 | . . . . . . . . . . . . . . . . . . . 1 . . . . 1 . . . Build 1 | . . . . . . . . . . . . . . . . . . . . . . . . 1 . . . Repair Station Hacks 3 | . . . . . . . . . . . . . . 2 . . . . . . . . . . . 1 . Scan Component 2 | . . . . . . . . . . . . . . 1 . . . . . . . . . . . 1 . Repair 1 | . . . . . . . . . . . . . . 1 . . . . . . . . . . . . . Recycling Unit Hacks 6 | . 4 . . . . . 1 . . . . . . . . . . . . . . . . 1 . . . Report Inventory 1 | . 1 . . . . . . . . . . . . . . . . . . . . . . . . . . Retrieve Components 5 | . 3 . . . . . 1 . . . . . . . . . . . . . . . . 1 . . . Scanalyzer 5 | . . . . . . . 1 . . . . . . 3 . . . . 1 . . . . . . . . Insert Component 4 | . . . . . . . 1 . . . . . . 2 . . . . 1 . . . . . . . . Analyze 1 | . . . . . . . . . . . . . . 1 . . . . . . . . . . . . . Garrison Access Hacks 2 | . . . . 1 . . 1 . . . . . . . . . . . . . . . . . . . . Unlock Access 1 | . . . . 1 . . . . . . . . . . . . . . . . . . . . . . . Seal Access 1 | . . . . . . . 1 . . . . . . . . . . . . . . . . . . . . Unauthorized Hacks 6 | . . . . . . . 6 . . . . . . . . . . . . . . . . . . . . Terminals 2 | . . . . . . . 2 . . . . . . . . . . . . . . . . . . . . Assimilate 2 | . . . . . . . 2 . . . . . . . . . . . . . . . . . . . . Fabricators . | . . . . . . . . . . . . . . . . . . . . . . . . . . . . Repair Stations . | . . . . . . . . . . . . . . . . . . . . . . . . . . . . Recycling Units 4 | . . . . . . . 4 . . . . . . . . . . . . . . . . . . . . Recyclers 1 | . . . . . . . 1 . . . . . . . . . . . . . . . . . . . . Tunnel 3 | . . . . . . . 3 . . . . . . . . . . . . . . . . . . . . Scanalyzers . | . . . . . . . . . . . . . . . . . . . . . . . . . . . . Garrison Access . | . . . . . . . . . . . . . . . . . . . . . . . . . . . . Data Cores Recovered 3 | . . . 1 . . . 1 . . . . . . . . . . . 1 . . . . . . . . Used . | . . . . . . . . . . . . . . . . . . . . . . . . . . . . Hacking Detections 73 | . 8 . 5 1 1 2 13 1 . . . 2 . 10 . . . . 5 . . . . 5 4 4 12 Full Trace Events 19 | . 2 . 1 . . . . . . . . . . 4 . . . . 1 . . . . 3 1 . 7 Feedback Events 4 | . . . . . . . . . . . . . . . . . . . . . . . . . 1 . 3 Corruption 2 | . . . . . . . . . . . . . . . . . . . . . . . . . . . 2 Hackware Fried 2 | . . . . . . . . . . . . . . . . . . . . . . . . . 1 . 1 Feedback Blocked . | . . . . . . . . . . . . . . . . . . . . . . . . . . . . Robot Schematics Acquired 6 | . . . . . . . . . . 6 . . . . . . . . . . . . . . . . . Robots Built . | . . . . . . . . . . . . . . . . . . . . . . . . . . . . Authchips . | . . . . . . . . . . . . . . . . . . . . . . . . . . . . Time . | . . . . . . . . . . . . . . . . . . . . . . . . . . . . Total Robot Build Rating . | . . . . . . . . . . . . . . . . . . . . . . . . . . . . Part Schematics Acquired 16 | . 1 . . . . . . . . 10 . . . 1 . . . . . . . 4 . . . . . Parts Built 1 | . . . . . . . . . . . . . . . . . . . . . . . . 1 . . . Authchips . | . . . . . . . . . . . . . . . . . . . . . . . . . . . . Time 76 | . . . . . . . . . . . . . . . . . . . . . . . . 76 . . . Total Part Build Rating 5 | . . . . . . . . . . . . . . . . . . . . . . . . 5 . . . Parts Repaired 1 | . . . . . . . . . . . . . . 1 . . . . . . . . . . . . . Time 44 | . . . . . . . . . . . . . . 44 . . . . . . . . . . . . . Parts Recycled . | . . . . . . . . . . . . . . . . . . . . . . . . . . . . Recycled Matter . | . . . . . . . . . . . . . . . . . . . . . . . . . . . . Retrieved Matter . | . . . . . . . . . . . . . . . . . . . . . . . . . . . . Retrieved Components 8 | . 3 . . . . . 2 . . . . . . . . . . . . . . . . 3 . . . Parts Scanalyzed 2 | . . . . . . . . . . . . . . 1 . . . . 1 . . . . . . . . Part Schematics Acquired 1 | . . . . . . . . . . . . . . 1 . . . . . . . . . . . . . Parts Damaged 2 | . . . . . . . . . . . . . . 1 . . . . 1 . . . . . . . . Bothacking | -11 -10 -10 -9 -8 -8 -8 -7 -7 -7 -7 -6 -6 -6 -5 -5 -5 -5 -4 -4 -4 -4 -4 -3 -3 -2 -2 -1 ------------ Run | Yrd Mat Min Mat Mat Gar Mat Fac Low Low Dat Pro Fac DSF Fac Upp Upp War Pro Fac Upp Upp Zhi Pro Res Res Qua Acc Used RIF Installer . | . . . . . . . . . . . . . . . . . . . . . . . . . . . . Robots Hacked . | . . . . . . . . . . . . . . . . . . . . . . . . . . . . Non-combat . | . . . . . . . . . . . . . . . . . . . . . . . . . . . . Combat . | . . . . . . . . . . . . . . . . . . . . . . . . . . . . Robot Hacks Applied . | . . . . . . . . . . . . . . . . . . . . . . . . . . . . Relay Couplers Released 11 | . . . . . 9 . . . . . . . . . . . . . . . . . . . 2 . . Machine Destruction 11 | . . . . . 9 . . . . . . . . . . . . . . . . . . . 2 . . Fabnet Peak Effective % . | . . . . . . . . . . . . . . . . . . . . . . . . . . . . Robots Rewired . | . . . . . . . . . . . . . . . . . . . . . . . . . . . . Allies Hacked . | . . . . . . . . . . . . . . . . . . . . . . . . . . . . Hacks Repelled . | . . . . . . . . . . . . . . . . . . . . . . . . . . . . Allies | -11 -10 -10 -9 -8 -8 -8 -7 -7 -7 -7 -6 -6 -6 -5 -5 -5 -5 -4 -4 -4 -4 -4 -3 -3 -2 -2 -1 -------- Run | Yrd Mat Min Mat Mat Gar Mat Fac Low Low Dat Pro Fac DSF Fac Upp Upp War Pro Fac Upp Upp Zhi Pro Res Res Qua Acc Total Allies 2 | . . . . . . . 2 . . . . . . . . . . . . . . . . . . . . Largest Group 1 | . . . . . . . 1 . . . . . . . . . . . . . . . . . . . . Highest-Rated Group 10 | . . . . . . . 10 . . . . . . . . . . . . . . . . . . . . Highest-Rated Ally 10 | . . . . . . . 10 . . . . . . . . . . . . . . . . . . . . Initial Warlord ECA Mod 6 | . . . . . . 2 1 1 1 1 . . . . . . . . . . . . . . . . . Total Orders . | . . . . . . . . . . . . . . . . . . . . . . . . . . . . Ally Attacks . | . . . . . . . . . . . . . . . . . . . . . . . . . . . . Total Damage . | . . . . . . . . . . . . . . . . . . . . . . . . . . . . Kills . | . . . . . . . . . . . . . . . . . . . . . . . . . . . . Allies Corrupted . | . . . . . . . . . . . . . . . . . . . . . . . . . . . . Allies Melted . | . . . . . . . . . . . . . . . . . . . . . . . . . . . . Intel | -11 -10 -10 -9 -8 -8 -8 -7 -7 -7 -7 -6 -6 -6 -5 -5 -5 -5 -4 -4 -4 -4 -4 -3 -3 -2 -2 -1 ------- Run | Yrd Mat Min Mat Mat Gar Mat Fac Low Low Dat Pro Fac DSF Fac Upp Upp War Pro Fac Upp Upp Zhi Pro Res Res Qua Acc Active Infowar (turns) 8727 | . 32 255 733 . . . 937 124 174 30 247 198 38 720 352 1075 362 148 380 182 102 171 151 371 996 158 791 Optics 7706 | . . . . . . . 936 124 174 30 247 198 38 720 352 1075 362 148 380 182 102 171 151 371 996 158 791 Sensors 3068 | . . . . . . . . . . . . 77 23 665 352 1075 362 148 366 . . . . . . . . Structural 1020 | . 32 255 733 . . . . . . . . . . . . . . . . . . . . . . . . Traps 907 | . . . . . . . . . . . . . . . 194 355 . . 358 . . . . . . . . Seismic 172 | . . . . . . . . . . . . . . . . . . . . . . . . . . . 172 Decoding 2413 | . . . . . . . . . . . . . . . . . . . . 3 102 171 151 371 996 158 461 Machine Analysis 1833 | . . . . . . . . . . . . . . . . . . . . . . . . . 894 158 781 Cloaking 502 | . . . . . . . . . . . . . . . . . . . . . . . . . 74 95 333 Jamming 2171 | . . . . . . . 157 . 12 2 115 25 10 99 . 18 . . 1 1 . . . 233 993 151 354 ECM 2332 | . . . . . . . 435 19 . . . 25 . 531 195 858 38 6 78 . . . . . . . 147 Robot Analysis Total 4 | . . . . . . . . . . . . . . . . . . . . . . 4 . . . . . Derelict Logs Recovered 10 | . . . . . . . . 1 . . 2 . . . 1 1 . 1 . 2 2 . . . . . . Drone Launches . | . . . . . . . . . . . . . . . . . . . . . . . . . . . . Drone Recoveries . | . . . . . . . . . . . . . . . . . . . . . . . . . . . . Decoded 0b10 Intel 129 | . . . . . . . . . . . . . . . . . . . . . . . . 31 55 12 31 Traps 3 | . . . . . . . . . . . . . . . . . . . . . . . . 3 . . . Items 126 | . . . . . . . . . . . . . . . . . . . . . . . . 28 55 12 31 Exploration | -11 -10 -10 -9 -8 -8 -8 -7 -7 -7 -7 -6 -6 -6 -5 -5 -5 -5 -4 -4 -4 -4 -4 -3 -3 -2 -2 -1 ------------- Run | Yrd Mat Min Mat Mat Gar Mat Fac Low Low Dat Pro Fac DSF Fac Upp Upp War Pro Fac Upp Upp Zhi Pro Res Res Qua Acc Turns Passed 10676 | 47 373 255 1025 187 946 105 968 124 174 30 247 198 38 720 352 1075 362 148 380 182 102 171 151 371 996 158 791 Spaces Moved 17298 | 33 284 170 580 213 768 189 1720 353 540 101 636 368 92 1046 532 1169 957 400 676 449 332 251 492 842 2188 289 1628 Core 322 | 8 . . . 33 46 21 . . . . . . . . . . . . . . . . . 2 . . 212 Treads . | . . . . . . . . . . . . . . . . . . . . . . . . . . . . Legs 1122 | 25 284 170 580 63 . . . . . . . . . . . . . . . . . . . . . . . Wheels . | . . . . . . . . . . . . . . . . . . . . . . . . . . . . Hover 284 | . . . . . 217 . . . . . . . . . . . . . . . . 67 . . . . . Flight 15570 | . . . . 117 505 168 1720 353 540 101 636 368 92 1046 532 1169 957 400 676 449 332 184 492 840 2188 289 1416 Fastest Speed 17 | 50 120 120 120 35 35 26 26 26 26 27 27 30 30 29 29 29 30 18 20 27 17 27 27 17 28 34 31 Average Speed 37 | 103 120 120 132 62 44 33 26 26 26 27 28 30 30 33 33 33 31 28 25 27 26 53 27 27 31 36 37 Slowest Speed 300 | 120 120 120 190 190 120 300 91 26 27 27 30 30 30 37 109 119 34 30 28 27 27 150 28 250 114 115 150 Overloaded Moves 866 | . . . . . . . . . . . . . . 44 18 58 . 44 138 . 22 . . 148 . . 394 Propulsion Burnouts 2 | . . . . . . . . . . . . . . . . . . . . . . . . 1 . . 1 Robots Hopped 118 | . . . . . 6 . 14 1 . . 4 . 1 5 . . 4 2 17 4 2 . . 16 18 . 24 Potential Cave-ins 3 | . . . . . . . . . . . . . . . . . . . . . . . . . 3 . . Cave-ins Triggered . | . . . . . . . . . . . . . . . . . . . . . . . . . . . . Teleports 1 | . . . . . . . . . . . . . . . . . . . . . . . 1 . . . . Exploration Rate (%) 51 | 3 57 44 44 23 48 29 44 58 68 78 77 10 82 35 71 72 95 64 20 63 55 63 70 25 49 50 41 Regions Visited 27 Branch Regions 14 Pre-discovered Areas 8 | . . . . . . . 3 1 . 1 . . . . . . . . . . . 3 . . . . . Known Exits Taken 20 | . . . . 1 . . 1 1 1 1 1 1 . 1 1 1 1 1 1 1 1 1 1 1 1 1 . Unknown Exits Taken 5 | 1 1 1 1 . . 1 . . . . . . . . . . . . . . . . . . . . . Scrap Searched 16 | . . 1 . . . . . 4 1 . 2 . . . 1 1 . . . 2 1 . 3 . . . . Spaces Dug 54 | . . . . . . . 11 . . . . . . . . . . . 3 . . . . 3 1 26 10 Terrain Destroyed 464 | . 15 38 15 . 20 . 11 . . . 16 . . . . . . 30 3 . . . . 38 135 75 68 Melee 28 | . . . . . . . 11 . . . . . . . . . . . 3 . . . . 3 1 . 10 Projectile . | . . . . . . . . . . . . . . . . . . . . . . . . . . . . AOE 436 | . 15 38 15 . 20 . . . . . 16 . . . . . . 30 . . . . . 35 134 75 58 Terrain Rammed . | . . . . . . . . . . . . . . . . . . . . . . . . . . . . Walls Destroyed . | . . . . . . . . . . . . . . . . . . . . . . . . . . . . Machines Disabled . | . . . . . . . . . . . . . . . . . . . . . . . . . . . . Actions | -11 -10 -10 -9 -8 -8 -8 -7 -7 -7 -7 -6 -6 -6 -5 -5 -5 -5 -4 -4 -4 -4 -4 -3 -3 -2 -2 -1 --------- Run | Yrd Mat Min Mat Mat Gar Mat Fac Low Low Dat Pro Fac DSF Fac Upp Upp War Pro Fac Upp Upp Zhi Pro Res Res Qua Acc Total 20770 | 46 313 200 777 247 1248 223 2161 374 552 102 693 451 99 1395 682 1830 1014 424 858 502 343 282 502 947 2456 334 1715 Wait 2389 | . 15 6 84 13 286 9 297 5 2 . 49 63 6 309 137 641 24 8 177 52 10 . . 45 147 1 3 Move 17065 | 32 283 169 579 212 757 188 1692 350 539 100 630 367 89 1035 531 1168 950 395 643 441 327 250 491 814 2159 288 1586 Hop 89 | . . . . . 4 . 13 1 . . 1 . 1 5 . . 2 2 15 3 2 . . 12 10 . 18 Pick Up 224 | 8 8 4 26 2 14 9 24 4 . . 1 4 . 12 2 4 11 3 7 1 1 6 2 12 26 9 24 Fast Attach 49 | . . . 2 4 4 5 . . . . 1 1 . . . . 4 . 1 1 . 4 2 2 11 . 7 Attach 160 | 6 2 1 9 3 10 7 6 . . . 1 5 . 9 2 4 5 6 3 1 1 3 1 14 22 12 27 Detach 41 | . . . . . 4 . 2 . . . 1 1 . 2 . 1 3 . 1 . 1 . . 5 11 5 4 Swap 98 | . 2 5 18 . . . 11 4 3 2 3 8 3 7 . . 3 . 1 1 . 4 3 3 12 3 2 Drop 154 | . 1 2 25 2 11 2 18 4 . . 2 2 . 7 . 3 12 3 3 . . 8 2 9 28 5 5 Fire 206 | . 2 13 34 11 112 . . . . . 3 . . . . . . 1 . . . . . 2 15 5 8 Melee 184 | . . . . . . 3 44 6 8 . 1 . . 9 10 9 . 6 7 2 1 7 1 19 15 6 30 Ram 2 | . . . . . 1 . . . . . . . . . . . . . . . . . . . . . 1 Kick . | . . . . . . . . . . . . . . . . . . . . . . . . . . . . Crush . | . . . . . . . . . . . . . . . . . . . . . . . . . . . . Escape Stasis 101 | . . . . . 37 . 54 . . . . . . . . . . . . . . . . 10 . . . Rewire . | . . . . . . . . . . . . . . . . . . . . . . . . . . . . Trap 8 | . . . . . 8 . . . . . . . . . . . . . . . . . . . . . . Miscellaneous . | . . . . . . . . . . . . . . . . . . . . . . . . . . . . Route ------- -11/Scrapyard -10/Materials (discovered 2 exits: *Mat / [*Min]) -10/Mines (discovered 2 exits: *Mat / [Sub]) -9/Materials -8/Materials (discovered 2 exits: *Sto / Gar) -8/Garrison (discovered 3 exits: *Mat x3) -8/Materials (discovered 2 exits: *Fac / Sto) -7/Factory (discovered 2 exits: *Fac / *Low) -7/Lower Caves -7/Lower Caves -7/Data Miner -6/Proximity Caves -6/Factory (discovered 3 exits: Fac / *Low / DSF) -6/DSF -5/Factory (discovered 2 exits: *Fac / *Upp) -5/Upper Caves -5/Upper Caves (discovered 2 exits: *Fac / *War) -5/Warlord -4/Proximity Caves -4/Factory (discovered 2 exits: *Upp x2) -4/Upper Caves -4/Upper Caves -4/Zhirov -3/Proximity Caves -3/Research -2/Research (discovered 3 exits: *Acc / *Qua x2) -2/Quarantine -1/Access (discovered 1 exit: Sur) History --------- Turn | Location | Event 5 | -11/Scrapyard | Discovered new exit (range 16) 48 | -11/Scrapyard | Entered Materials 229 | -10/Materials | Discovered new exit (range 10) 313 | -10/Materials | Build established: Mutant 371 | -10/Materials | Discovered new exit (range 8) 421 | -10/Materials | Entered Mines 438 | -10/Mines | Discovered new exit (range 5) 655 | -10/Mines | Discovered new exit (range 13) 676 | -10/Mines | Entered Materials 676 | -9/Materials | Evolved 2 slots: Propulsion x1, Utility x1 1019 | -9/Materials | Build established: Scavenger-Mutant 1595 | -9/Materials | Discovered new exit (range 10) 1701 | -9/Materials | Entered another Materials area 1701 | -8/Materials | Evolved 2 slots: Propulsion x1, Utility x1 1822 | -8/Materials | Released all parts (7) 1834 | -8/Materials | Discovered new exit (range 16) 1849 | -8/Materials | Lost 4 parts (3n1u) 1859 | -8/Materials | Identified exit to Garrison 1888 | -8/Materials | Entered Garrison 2103 | -8/Garrison | Build established: Mutant 2174 | -8/Garrison | Triggered checkpoint 2243 | -8/Garrison | Garrison Relay disabled 2502 | -8/Garrison | Triggered checkpoint 2508 | -8/Garrison | Garrison Relay disabled 2522 | -8/Garrison | Discovered new exit (range 12) 2712 | -8/Garrison | Triggered checkpoint 2716 | -8/Garrison | Triggered checkpoint 2732 | -8/Garrison | Core integrity fell below 50% 2786 | -8/Garrison | Core integrity fell below 20% 2814 | -8/Garrison | Discovered new exit (range 14) 2820 | -8/Garrison | Discovered new exit (range 6) 2825 | -8/Garrison | Lost 7 parts (1p2n2u2w) 2834 | -8/Garrison | Entered Materials 2900 | -8/Materials | Identified exit to Storage 2932 | -8/Materials | Discovered new exit (range 16) 2939 | -8/Materials | Entered Factory 2939 | -7/Factory | Evolved 2 slots: Utility x2 3147 | -7/Factory | Build established: Sprinter 3275 | -7/Factory | Discovered new exit (range 20) 3530 | -7/Factory | Discovered new exit (range 20) 3587 | -7/Factory | Build established: Infiltrator-Sprinter 3866 | -7/Factory | Identified exit to Lower Caves 3907 | -7/Factory | Entered Lower Caves 3914 | -7/Lower Caves | Met a Warlord Commander 3915 | -7/Lower Caves | Learned location of Warlord (-5) 3916 | -7/Lower Caves | Warlord Commander delivered Encrypted Comm Array 3917 | -7/Lower Caves | Found Encrypted Comm Array 3932 | -7/Lower Caves | Encountered a Warlord checkpoint 3934 | -7/Lower Caves | Identified exit to Lower Caves 4031 | -7/Lower Caves | Entered another Lower Caves area 4073 | -7/Lower Caves | Spotted B-75 Beast 4118 | -7/Lower Caves | Discovered new exit (range 15) 4124 | -7/Lower Caves | Identified exit to Data Miner 4205 | -7/Lower Caves | Entered Data Miner 4205 | -7/Data Miner | Discovered new exit (range 6) 4209 | -7/Data Miner | Identified exit to Proximity Caves 4212 | -7/Data Miner | Met Data Miner 4224 | -7/Data Miner | Learned location of Section 7 (-2) 4224 | -7/Data Miner | Acquired the access code to Warlord's prototype stash 4230 | -7/Data Miner | Received God Mode back door access code from Data Miner 4235 | -7/Data Miner | Entered Proximity Caves 4263 | -6/Proximity Caves | Learned location of 1 exit from Factory 4267 | -6/Proximity Caves | Build established: Sprinter 4351 | -6/Proximity Caves | Learned 4 Factory zone layouts 4451 | -6/Proximity Caves | Spotted B-75 Beast 4480 | -6/Proximity Caves | Discovered new exit (range 5) 4482 | -6/Proximity Caves | Identified exit to Factory 4482 | -6/Proximity Caves | Entered Factory 4482 | -6/Factory | Evolved 2 slots: Utility x2 4483 | -6/Factory | Identified exit to Factory 4487 | -6/Factory | Discovered new exit (range 14) 4491 | -6/Factory | Identified exit to Lower Caves 4680 | -6/Factory | Identified exit to DSF 4680 | -6/Factory | Entered DSF 4712 | -6/DSF | Additional patrols routed to DSF 4714 | -6/DSF | Discovered exit to Factory (range 17) 4718 | -6/DSF | Entered Factory 4718 | -5/Factory | Evolved 2 slots: Utility x2 4931 | -5/Factory | Incoming investigation squad redirected 5001 | -5/Factory | Repaired Greatsword 5149 | -5/Factory | Discovered new exit (range 6) 5153 | -5/Factory | Identified exit to Factory 5322 | -5/Factory | Build established: Infiltrator-Ninja 5330 | -5/Factory | Discovered new exit (range 8) 5333 | -5/Factory | Identified exit to Upper Caves 5438 | -5/Factory | Entered Upper Caves 5439 | -5/Upper Caves | Encountered a Warlord checkpoint 5556 | -5/Upper Caves | Identified exit to Upper Caves 5790 | -5/Upper Caves | Entered another Upper Caves area 5802 | -5/Upper Caves | Discovered exit to Factory (range 9) 5807 | -5/Upper Caves | Acquired the password to a Derelict Tinkerer's latest research 5813 | -5/Upper Caves | Found Prototype Special Weapon 5814 | -5/Upper Caves | Identified Molecular Deconstructor 5837 | -5/Upper Caves | Spotted B-75 Beast 5857 | -5/Upper Caves | Learned Factory emergency access door positions 6857 | -5/Upper Caves | Discovered new exit (range 20) 6865 | -5/Upper Caves | Identified exit to Warlord 6865 | -5/Upper Caves | Entered Warlord 6885 | -5/Warlord | Discovered new exit (range 12) 6888 | -5/Warlord | Identified exit to Proximity Caves 6899 | -5/Warlord | System corruption cleaned by Quarantine Array 6926 | -5/Warlord | Opened side exit 6964 | -5/Warlord | Met Warlord 6989 | -5/Warlord | Warlord's base attacked by MAIN.C 7018 | -5/Warlord | Found Prototype Special Weapon 7019 | -5/Warlord | Identified RU-N14's Throwing Claymores v3 7026 | -5/Warlord | Opened Warlord's prototype stash 7036 | -5/Warlord | Found Prototype Device 7037 | -5/Warlord | Identified Exp. Focal Shield 7039 | -5/Warlord | Found Prototype Processor 7039 | -5/Warlord | Identified Exp. Target Analyzer 7042 | -5/Warlord | Found Prototype Hackware 7042 | -5/Warlord | Identified Ghost Barrier 7055 | -5/Warlord | Found Prototype Reactor 7163 | -5/Warlord | Found Prototype Piercing Weapon 7163 | -5/Warlord | Identified Vortex Lance 7165 | -5/Warlord | Found Prototype Launcher 7165 | -5/Warlord | Identified Vortex Catalyst Activator 7171 | -5/Warlord | Found Vortex Lance 7173 | -5/Warlord | Found Vortex Lance 7175 | -5/Warlord | Found Vortex Lance 7227 | -5/Warlord | Entered Proximity Caves 7300 | -4/Proximity Caves | Learned Research stockpile data 7330 | -4/Proximity Caves | Build established: Hacker-Scout 7339 | -4/Proximity Caves | Unaware initiated a cargo recovery operation 7357 | -4/Proximity Caves | Attracted the attention of an 0b10 checkpoint 7368 | -4/Proximity Caves | Spotted Executioner 7374 | -4/Proximity Caves | Discovered exit to Factory (range 7) 7375 | -4/Proximity Caves | Entered Factory 7375 | -4/Factory | Evolved 2 slots: Power x1, Propulsion x1 7518 | -4/Factory | Identified exit to Upper Caves 7614 | -4/Factory | Spotted B-86 Titan 7755 | -4/Factory | Entered Upper Caves 7926 | -4/Upper Caves | Learned Research security intel 7929 | -4/Upper Caves | Discovered new exit (range 6) 7930 | -4/Upper Caves | Identified exit to Upper Caves 7937 | -4/Upper Caves | Entered another Upper Caves area 8015 | -4/Upper Caves | Learned Research emergency access door positions 8034 | -4/Upper Caves | Attracted the attention of an 0b10 checkpoint 8038 | -4/Upper Caves | Discovered new exit (range 9) 8039 | -4/Upper Caves | Identified exit to Zhirov 8039 | -4/Upper Caves | Entered Zhirov 8039 | -4/Zhirov | Discovered new exit (range 3) 8040 | -4/Zhirov | Identified exit to Proximity Caves 8045 | -4/Zhirov | Met Zhirov 8052 | -4/Zhirov | Learned location of Quarantine (-2) 8052 | -4/Zhirov | Learned location of Testing (-3) 8052 | -4/Zhirov | Learned location of Command (-1) 8056 | -4/Zhirov | Zhirov requested help retrieving the SGEMP Prototype 8060 | -4/Zhirov | Found Alien Artifact 8061 | -4/Zhirov | Identified Integrated Dissipator 8061 | -4/Zhirov | Installed Integrated Dissipator, increased core heat dissipation (+20) 8068 | -4/Zhirov | Found Alien Artifact 8210 | -4/Zhirov | Entered Proximity Caves 8213 | -3/Proximity Caves | Found DCF Scrap (14 items) 8260 | -3/Proximity Caves | Found Alien Artifact 8261 | -3/Proximity Caves | Identified Dimensional Node Initializer 8261 | -3/Proximity Caves | Initialized slip node 8263 | -3/Proximity Caves | Identified Transdimensional Reconstructor 8263 | -3/Proximity Caves | Warped through subspace to slip node 8310 | -3/Proximity Caves | Discovered new exit (range 14) 8313 | -3/Proximity Caves | Identified exit to Research 8361 | -3/Proximity Caves | Entered Research 8361 | -3/Research | Evolved 2 slots: Utility x2 8441 | -3/Research | Spotted B-86 Titan 8479 | -3/Research | Destroyed 9 combat bots 8509 | -3/Research | Lost 4 parts (4n) 8549 | -3/Research | Spotted B-86 Titan 8566 | -3/Research | Fabricated Biomechanical Wings? 8715 | -3/Research | Discovered new exit (range 16) 8731 | -3/Research | Identified exit to Research 8732 | -3/Research | Entered another Research area 8732 | -2/Research | Warlord forces began assault on 0b10 8732 | -2/Research | Evolved 2 slots: Utility x2 8733 | -2/Research | Identified exit to Quarantine 8744 | -2/Research | Spotted B-90 Cyclops 8762 | -2/Research | Lost 6 parts (1p2n3u) 8765 | -2/Research | Adv. Hacking Suite fried by hacking feedback 8826 | -2/Research | Met up with Warlord 8842 | -2/Research | Research machine network offline 9035 | -2/Research | Spotted Striker 9039 | -2/Research | Build established: Infiltrator-Sprinter 9048 | -2/Research | Spotted Striker 9050 | -2/Research | Spotted Striker 9106 | -2/Research | Lost 8 allies 9184 | -2/Research | Spotted Striker 9184 | -2/Research | Spotted Striker 9189 | -2/Research | Destroyed Striker 9191 | -2/Research | Destroyed Striker 9218 | -2/Research | Lost 7 allies 9221 | -2/Research | Found Fusion Bomb Launcher 9223 | -2/Research | Destroyed 7 combat bots 9302 | -2/Research | Borebot progress halted 9425 | -2/Research | Borebot progress halted 9508 | -2/Research | Spotted Striker 9527 | -2/Research | Spotted Executioner 9527 | -2/Research | Spotted Executioner 9534 | -2/Research | Destroyed Executioner 9549 | -2/Research | Spotted Striker 9558 | -2/Research | Spotted Executioner 9568 | -2/Research | Spotted Executioner 9572 | -2/Research | Destroyed Executioner 9574 | -2/Research | Destroyed Executioner 9588 | -2/Research | Lost 7 allies 9588 | -2/Research | Spotted Executioner 9588 | -2/Research | Spotted Executioner 9589 | -2/Research | Spotted Striker 9592 | -2/Research | Spotted Striker 9598 | -2/Research | Spotted Executioner 9610 | -2/Research | Spotted Executioner 9617 | -2/Research | Discovered new exit (range 10) 9620 | -2/Research | Spotted Executioner 9621 | -2/Research | Spotted Striker 9644 | -2/Research | Lost 4 allies 9645 | -2/Research | Identified exit to Access 9659 | -2/Research | Spotted Executioner 9663 | -2/Research | Spotted Executioner 9678 | -2/Research | Spotted Striker 9728 | -2/Research | Entered Quarantine 9794 | -2/Quarantine | Found Prototype Device 9795 | -2/Quarantine | Identified Thermal Barrier 9843 | -2/Quarantine | Lost 3 parts (3u) 9851 | -2/Quarantine | Discovered exit to Access (range 17) 9862 | -2/Quarantine | Found Alien Slashing Weapon 9886 | -2/Quarantine | Entered Access 9886 | -1/Access | Evolved 2 slots: Propulsion x1, Utility x1 9887 | -1/Access | Identified Sigix Broadsword 9911 | -1/Access | Lost 4 parts (1p1n2u) 10061 | -1/Access | Found Prototype Processor 10061 | -1/Access | Identified Exp. Core Analyzer 10084 | -1/Access | Build established: Infiltrator-Mutant 10108 | -1/Access | Identified exit to Surface 10250 | -1/Access | Incoming investigation squad redirected 10275 | -1/Access | Incoming investigation squad redirected 10277 | -1/Access | Destroyed 13 combat bots 10315 | -1/Access | Spotted B-99 Colossus 10327 | -1/Access | Lost 15 parts (2p4n7u2w) 10348 | -1/Access | Core integrity fell below 50% 10378 | -1/Access | Lost 9 parts (2p5n2u) 10385 | -1/Access | Incoming investigation squad redirected 10386 | -1/Access | First assault squad dispatched 10544 | -1/Access | System corruption reached 10% 10552 | -1/Access | Hacking Suite fried by hacking feedback 10604 | -1/Access | Lost 7 parts (1p4n1u1w) 10631 | -1/Access | Core integrity fell below 20% 10677 | -1/Access | Destroyed by P-80 Master with Gamma Rifle Last Messages --------------- 1M. 10636_ Adv. Signal Interpreter destroyed. 10642_ System corrupted: Matter fused (-5). 10655_ Slammed into R-10 Processor. 10655_ R-10 Processor knocked back. 10658_ P-80 Master resets R-10 Processor, system corruption cleaned. 10659_ System corrupted: Energy discharge (-37). 10662_ Recycling Unit disabled. 10663_ P-80 Master resets P-80 Master, system corruption cleaned. 10663_ Penetrated by Slug. 10667_ Machine Analyzer destroyed. 10668_ P-80 Master resets P-80 Master, system corruption cleaned. 10674_ Knocked back. 10674_ Slug penetrates Wall. 10674_ Penetrated by Slug. 10674_ Slug penetrates Wall. 10675_ System corrupted: Heat flow error (+236). Map ----- +----------------------------------------------------+ | # #??????????????# #???????# #?? | | ###############???????????####+######### #?? | | #############?????????????# # #?? | | #?????????????# #!* #?? | | ] #?????????????# "" % #/* +?? | | * #?????????????# "" % # #?? | | #?????????????# """""" # #?? | | #?????????????# """""" # #?? | | #?????????????# "" " #?? | | #############?????????????# "" # #?? | | ??????????????????????????# # ### | | #####"????????????######### " # | | "T""""????????????" # ! # [ # | | " " ""????????????" # # # | | "????????????" #####+######## # | | "????????????? # | | "??????????????? # | | "????